{"text_format":"1","workbook":"xlsx","n_sheets":3,"sheets":["Kalkulator","Lista rajów podatkowych","Pomocniczy"],"not_rendered":{"charts":0,"images":1,"macros":1,"external_links":0,"defined_names":1,"comments":0,"pivot_tables":0},"unopened":[],"bounds":{"document_bytes":16777216,"sheet_cells":100000,"rows_first":2000,"rows_last":500,"rows_between":2000,"halvings":0,"cell_chars":16384,"cell_head_chars":4096},"cells_cut":0,"cells_raw":0,"read":"whole","date_system":"1900"}

{"sheet":"Kalkulator","index":0,"n_rows":55,"n_cols":12,"rows_kept":55,"cut":false,"hidden":false,"merged":[[29,9,29,11],[30,9,30,11],[31,9,31,11],[32,9,32,11],[27,0,28,5],[27,9,27,11],[28,9,28,11],[36,9,43,11],[14,0,14,4],[20,1,22,5],[16,1,18,5],[25,6,26,8],[16,6,18,10],[14,6,14,10],[29,0,30,5],[35,5,38,8],[29,6,29,7],[30,6,30,7],[31,6,31,7],[32,6,32,7],[27,6,27,7],[28,6,28,7],[31,0,32,5],[0,2,1,7],[25,9,26,11],[2,0,3,5],[2,6,3,7],[4,6,4,7],[4,0,4,5],[5,6,6,7],[5,0,6,5],[7,0,7,11],[8,0,9,5],[25,0,26,5],[1,9,4,11],[16,11,18,11],[8,6,9,11],[24,0,24,11]]}
[null,null,"W zielone pola wprowadź dane "]
[null,null,null,null,null,null,null,null,null,"Z naszej strony internetowej można pobrać bezpłatny przewodnik po nowych obowiązkach dokumentacyjnych - kompendium niezbędnych informacji !"]
["Ostatni dzień roboczy roku podatkowego Twojej spółki poprzedzającego wybrany rok podatkowy w układzie RR-MM-DD",null,null,null,null,null,"2017-12-29"]
[]
["Kurs EUR/PLN z wybranego przez Ciebie dnia: ",null,null,null,null,null,{"$f":"Pomocniczy!H10","v":"4,1709"}]
["lub wpisz własny kurs (np. w przypadku braku łączności z serwerem NBP)"]
[]
["Dane dotyczące Spółki"]
["Wprowadź zgodną z rachunkiem zysków i strat za dany rok podatkowy wartość: ",null,null,null,null,null,"Jeżeli Spółka poniosła stratę z działalności gospodarczej podaj zgodną z rachunkiem zysków i strat za dany rok podatkowy wartość: "]
[]
["– przychodów netto ze sprzedaży",null,null,null,null,null,"– kosztów działalności operacyjnej"]
["– pozostałych przychodów operacyjnych ",null,null,null,null,null,"– pozostałych kosztów  operacyjnych"]
["– przychodów finansowych",null,null,null,null,null,"– kosztów finansowych"]
[null,null,null,null,"Suma:",{"$f":"SUM(F11:F13)","v":0},null,null,null,null,"Suma:",{"$f":"SUM(L11:L13)","v":0}]
["albo od razu sumę przychodów",null,null,null,null,8260081.71,"albo od razu sumę kosztów"]
[]
[null,"Umowy: Spółka zawarła umowę spółki niebędącej osobą prawną, umowę wspólnego przedsięwzięcia lub inną o podobnym charakterze",null,null,null,null,"Jeśli Spółka jest jednostką konsolidującą sprawozdania finansowe podaj przychody skonsolidowane grupy w EUR"]
[]
[]
[]
[null,"Raje: Spółka zawierała transakcję (lub umowę spółki, wspólnego przedsięwzięcia, itp.) z podmiotem, który ma siedzibę w kraju znadującym się na liście tzw. rajów podatkowych"]
[]
[]
[]
["Podsumowanie"]
["Rodzaj zdarzenia",null,null,null,null,null,"Wartość progu istotności dla zdarzenia",null,null,{"$f":"IF(OR(Pomocniczy!$A$1=TRUE,L17>=750000000,MAX(F14,F15,L14,L15)>(IF(G6=\"\",2000000*G5,2000000*G6))), \"Zakres obowiązku dokumentacyjnego dla zdarzeń przekraczających wskazane progi:\", \"Brak obowiązku dokumentacyjnego\")","v":"Brak obowiązku dokumentacyjnego"}]
[]
["Wszystkie transakcje (poza transakcjami z rajami oraz umowami spółek, wspólnego przedsięwzięcia)",null,null,null,null,null,{"$f":"IF(MAX(F14,F15,L14,L15)<=(IF(G6=\"\",2000000*G5,2000000*G6)),\"nie dotyczy\",IF(AND(MAX(F14,F15)>=0,MAX(F14,F15)<(IF(G6=\"\",20000000*G5, 20000000*G6))),50000*IF(G6=\"\",G5,G6)+ROUNDDOWN(IF(MAX(F14,F15)>(IF(G6=\"\",2000000*G5,2000000*G6)),(MAX(F14,F15)-(IF(G6=\"\",2000000*G5,2000000*G6)))/((IF(G6=\"\",2000000*G5,2000000*G6))/2),0),0)*5000*IF(G6=\"\",G5,G6),A55))","v":"nie dotyczy"},null,{"$f":"IF(G28=\"nie dotyczy\",\"\",\"PLN\")","v":""},{"$f":"IF(OR(Pomocniczy!$A$1=TRUE,MAX(F14,F15,L14,L15)>(IF(G6=\"\",2000000*G5,2000000*G6))), \"1) dokumentacja podstawowa (tzw. local - file)\", \"\")","v":""}]
[null,null,null,null,null,null,{"$f":"IF(MAX(F14,F15,L14,L15)<=(IF(G6=\"\",2000000*G5,2000000*G6)),\"nie dotyczy\", IF(G6=\"\",G28/G5,G28/G6))","v":"nie dotyczy"},null,{"$f":"IF(G29=\"nie dotyczy\",\"\",\"EUR\")","v":""},{"$f":"IF(OR(Pomocniczy!$A$1=TRUE,MAX(F14,F15,L14,L15)>(IF(G6=\"\",2000000*G5,2000000*G6))), \"2) oświadczenie o sporządzeniu dokumentacji podatkowej\n\", \"\")","v":""}]
["Umowy: Umowa spółki niebędącej osobą prawną, wspólnego przedsięwzięcia lub inna o podobnym charakterze",null,null,null,null,null,{"$f":"IF(AND(MAX(F14,F15,L14,L15)>(IF(G6=\"\",2000000*G5,2000000*G6)), Pomocniczy!$A$2=TRUE),IF(G6=\"\",50000*G5, 50000*G6),\"nie dotyczy\")","v":"nie dotyczy"},null,{"$f":"IF(G30=\"nie dotyczy\",\"\",\"PLN\")","v":""},{"$f":"IF(MAX(F14,F15,L14,L15)>(IF(G6=\"\",10000000*G5, 10000000*G6)), \"3) analiza porównawcza (tzw. benchmarking study)\n\", \"\")","v":""}]
[null,null,null,null,null,null,{"$f":"IF(AND(MAX(F14,F15,L14,L15)>(IF(G6=\"\",2000000*G5,2000000*G6)), Pomocniczy!$A$2=TRUE),50000,\"nie dotyczy\")","v":"nie dotyczy"},null,{"$f":"IF(G31=\"nie dotyczy\",\"\",\"EUR\")","v":""},{"$f":"IF(MAX(F14,F15,L14,L15)>(IF(G6=\"\",10000000*G5, 10000000*G6)), \"4) sprawozdanie CIT-TP *\", \"\")","v":""}]
["Raje podatkowe: transakcja lub umowa spółki, wspólnego przedsięwzięcia, itp. zawarta z podmiotem, który ma siedzibę w kraju znadującym się na liście tzw. rajów podatkowych",null,null,null,null,null,{"$f":"IF(Pomocniczy!$A$1=TRUE,IF(G6=\"\",20000*G5, 20000*G6),\"nie dotyczy\")","v":"nie dotyczy"},null,{"$f":"IF(G32=\"nie dotyczy\",\"\",\"PLN\")","v":""},{"$f":"IF(MAX(F14,F15,L14,L15)>(IF(G6=\"\",20000000*G5, 20000000*G6)), \"5) dokumentacja grupowa (tzw. master-file)\", \"\")","v":""}]
[null,null,null,null,null,null,{"$f":"IF(Pomocniczy!$A$1=TRUE,20000,\"nie dotyczy\")","v":"nie dotyczy"},null,{"$f":"IF(G33=\"nie dotyczy\",\"\",\"EUR\")","v":""},{"$f":"IF(L17>=750000000,\"6) sprawozdanie Cbc\",\"\")","v":""}]
[null,{"$f":"IF(J31=\"\",\"\",\"*UWAGA: symulacja na podstawie danych z roku poprzedniego. Obowiązek powstaje, gdy w danym roku podatkowym przychody lub koszty przekraczają 10 mln EUR.\")","v":""}]
[]
[null,null,null,null,null,"© TP Advisory sp. z o.o. Styczeń 2017. Wszelkie prawa zastrzeżone. Rozpowszechnianie bez zgody TP Advisory sp. z o.o. zabronione",null,null,null,"Zastrzeżenie prawne:"]
[null,null,null,null,null,null,null,null,null,"Informacje przedstawione w ninejszym pliku nie stanowią porady podatkowej. Wyniki kalkulacji powinny zostać zweryfikowane. Informacje wskazujące na zakres obowiązku dokumentacyjnego każdorazowo należy sprawdzić z aktualnie obowiązującymi przepisami w zakresie obowiązków dokumentacyjnych. TP Advisory sp z o.o. nie bierze odpowiedzialności za zastosowanie się do informacji przedstawionych w niniejszym pliku."]
[]
[]
[]
[]
[]
[]
[]
[]
[]
[]
[]
[]
[]
[]
[]
[]
[]
[{"$f":"IF(AND(MAX(F14,F15)>=(IF(G6=\"\",20000000*G5, 20000000*G6)),MAX(F14,F15)<100000000*IF(G6=\"\",G5,G6)),140000*IF(G6=\"\",G5,G6)+ROUNDDOWN((MAX(F14,F15)-(IF(G6=\"\",20000000*G5, 20000000*G6)))/((IF(G6=\"\",10000000*G5, 10000000*G6))),0)*45000*IF(G6=\"\",G5,G6),500000*IF(G6=\"\",G5,G6))","v":2085449.9999999998}]

{"sheet":"Lista rajów podatkowych","index":1,"n_rows":31,"n_cols":2,"rows_kept":31,"cut":false,"hidden":false,"merged":[]}
[1,"Księstwo Andory"]
[2,"Anguila - Terytorium Zamorskie Zjednoczonego Królestwa Wielkiej Brytanii i Irlandii Północnej"]
[3,"Antigua i Barbuda"]
[4,"Sint-Maarten, Curacao - kraje wchodzące w skład królestwa Niderlandów"]
[5,"Wspólnota Bahamów"]
[6,"Królestwo Bahrajnu"]
[7,"Barbados"]
[8,"Brytyjskie Wyspy Dziewicze - Terytorium Zamorskie Zjednoczonego Królestwa Wielkiej Brytanii i Irlandii Północnej"]
[9,"Wyspy Cooka - Samorządne Terytorium Stowarzyszone z Nową Zelandią"]
[10,"Wspólnota Dominiki"]
[11,"Grenada"]
[12,"Sark - Terytorium Zależne Korony Brytyjskiej"]
[13,"Hongkong - Specjalny Region Administracyjny Chińskiej Republiki Ludowej"]
[14,"Republika Liberii"]
[15,"Księstwo Lichtensteinu"]
[16,"Makau - Specjalny Region Administracyjny Chińskiej Republiki Ludowej"]
[17,"Republika Malediwów"]
[18,"Republika Wysp Marshalla"]
[19,"Republika Mauritiusu"]
[20,"Księstwo Monako"]
[21,"Republika Nauru"]
[22,"Niue - Samorządne Terytorium Stowarzyszone z Nowa Zelandią"]
[23,"Republika Panamy"]
[24,"Niezależne Państwo Samoa"]
[25,"Republika Seszeli"]
[26,"Federacja Saint Kitts i Nevis"]
[27,"Saint Lucia"]
[28,"Saint Vincent i Grenadyny"]
[29,"Królestwo Tonga"]
[30,"Wyspy Dziewicze Stanów Zjednoczonych - Terytorium Nieinkorporowane Stanów Zjednoczonych "]
[31,"Republika Vanuatu"]

{"sheet":"Pomocniczy","index":2,"n_rows":15,"n_cols":8,"rows_kept":15,"cut":false,"hidden":true,"merged":[]}
[false]
[false]
[]
["Źródło danych NBP",null,null,null,null,null,null,"http://api.nbp.pl/api/exchangerates/rates/a/eur/2012-01-02/"]
["Zastąp końcówkę bieżącą datą + wystandaryzuj sposób wpisania daty + zamień na tekst (funkcja tekst)",null,null,null,null,null,null,{"$f":"REPLACE(H4,49,10,TEXT(Kalkulator!G3,\"RRRR-MM-DD\"))","v":"http://api.nbp.pl/api/exchangerates/rates/a/eur/2017-12-29/"}]
["pobież dane z serwera",null,null,null,null,null,null,{"$f":"_xlfn.WEBSERVICE(H5)","v":"{\"table\":\"A\",\"currency\":\"euro\",\"code\":\"EUR\",\"rates\":[{\"no\":\"251/A/NBP/2017\",\"effectiveDate\":\"2017-12-29\",\"mid\":4.1709}]}"}]
["błędna data",null,null,null,null,null,null,{"$f":"IFERROR(H6,\"zła data\")","v":"{\"table\":\"A\",\"currency\":\"euro\",\"code\":\"EUR\",\"rates\":[{\"no\":\"251/A/NBP/2017\",\"effectiveDate\":\"2017-12-29\",\"mid\":4.1709}]}"}]
["jaki numer ma w całym ciągu liczba oznaczająca początek kursu walutowego",null,null,null,null,null,null,{"$f":"FIND(\"mid\",H6,1)","v":107}]
["pobierz wartość z ciągu znaku o numerze podanym powyżej",null,null,null,null,null,null,{"$f":"MID(H6,H8+5,6)","v":"4.1709"}]
["zastąp kropkę w wartości kursu przecinkiem",null,null,null,null,null,null,{"$f":"IF(H7=\"zła data\",\"zła data\",REPLACE(H9, 2,1,\",\"))","v":"4,1709"}]
[]
[]
[]
[]
[{"$f":"IF(AND(MAX(Kalkulator!F13,Kalkulator!F14)>=(IF(Kalkulator!G6=\"\",20000000*Kalkulator!G5, 20000000*Kalkulator!G6)),MAX(Kalkulator!F13,Kalkulator!F14)<100000000*IF(Kalkulator!G6=\"\",Kalkulator!G5,Kalkulator!G6)),140000*IF(Kalkulator!G6=\"\",Kalkulator!G5,Kalkulator!G6)+ROUNDDOWN((MAX(Kalkulator!F13,Kalkulator!F14)-(IF(Kalkulator!G6=\"\",20000000*Kalkulator!G5, 20000000*Kalkulator!G6)))/((IF(Kalkulator!G6=\"\",10000000*Kalkulator!G5, 10000000*Kalkulator!G6))),0)*45000*IF(Kalkulator!G6=\"\",Kalkulator!G5,Kalkulator!G6),500000*IF(Kalkulator!G6=\"\",Kalkulator!G5,Kalkulator!G6))","v":2085449.9999999998}]